[Event "Titled Tuesday Blitz August 17 2021"]
[White "Bryakin, Mikhail"]
[Black "Ayushh, Ravikumar"]
[WhiteFideId "4165314"]
[BlackFideId "35039482"]
[WhiteElo "2336"]
[BlackElo "1441"]
[Result "1/2-1/2"]
[Round "11"]
[TimeControl "180+1"]
[Date "2021.08.17"]
[WhiteClock "0:00:15"]
[BlackClock "0:00:05"]

1. e4 {[%clk 0:02:32]}  e5 {[%clk 0:02:41]} 2. Nf3 {[%clk 0:02:24]}  Nc6 {[%clk 0:02:39]} 3. Nc3 {[%clk 0:02:18]}  Nf6 {[%clk 0:02:38]} 4. Bb5 {[%clk 0:02:10]}  Bc5 {[%clk 0:02:36]} 5. O-O {[%clk 0:01:51]}  d6 {[%clk 0:02:25]} 6. d3 {[%clk 0:01:46]}  O-O {[%clk 0:02:21]} 7. Be3 {[%clk 0:01:39]}  Bb6 {[%clk 0:02:14]} 8. h3 {[%clk 0:01:34]}  Ne7 {[%clk 0:02:05]} 9. Qd2 {[%clk 0:01:28]}  Ng6 {[%clk 0:01:58]} 10. Rad1 {[%clk 0:01:21]}  Be6 {[%clk 0:01:51]} 11. Ba4 {[%clk 0:01:08]}  d5 {[%clk 0:01:46]} 12. exd5 {[%clk 0:01:07]}  Nxd5 {[%clk 0:01:46]} 13. Bxb6 {[%clk 0:01:05]}  axb6 {[%clk 0:01:46]} 14. Bb3 {[%clk 0:01:05]}  Qd7 {[%clk 0:01:35]} 15. Rfe1 {[%clk 0:01:03]}  Nxc3 {[%clk 0:01:32]} 16. Qxc3 {[%clk 0:01:02]}  Bxb3 {[%clk 0:01:27]} 17. Qxb3 {[%clk 0:01:00]}  Qd6 {[%clk 0:01:15]} 18. a3 {[%clk 0:00:58]}  Rfe8 {[%clk 0:01:11]} 19. Rd2 {[%clk 0:00:54]}  Re7 {[%clk 0:01:07]} 20. Rde2 {[%clk 0:00:53]}  Rae8 {[%clk 0:01:06]} 21. Qb4 {[%clk 0:00:52]}  Qxb4 {[%clk 0:01:00]} 22. axb4 {[%clk 0:00:53]}  f6 {[%clk 0:01:00]} 23. g3 {[%clk 0:00:52]}  c6 {[%clk 0:01:00]} 24. Kg2 {[%clk 0:00:52]}  b5 {[%clk 0:01:00]} 25. Nd2 {[%clk 0:00:52]}  Nf8 {[%clk 0:00:55]} 26. Ne4 {[%clk 0:00:51]}  Ne6 {[%clk 0:00:53]} 27. c3 {[%clk 0:00:51]}  Rd8 {[%clk 0:00:52]} 28. Rd1 {[%clk 0:00:45]}  Red7 {[%clk 0:00:52]} 29. Red2 {[%clk 0:00:44]}  Kf7 {[%clk 0:00:51]} 30. Kf1 {[%clk 0:00:39]}  b6 {[%clk 0:00:35]} 31. h4 {[%clk 0:00:35]}  Kg6 {[%clk 0:00:26]} 32. f3 {[%clk 0:00:34]}  f5 {[%clk 0:00:20]} 33. Nf2 {[%clk 0:00:35]}  Kf6 {[%clk 0:00:19]} 34. Ke2 {[%clk 0:00:25]}  g6 {[%clk 0:00:18]} 35. Ra1 {[%clk 0:00:25]}  Nc7 {[%clk 0:00:17]} 36. Ra7 {[%clk 0:00:24]}  Nd5 {[%clk 0:00:17]} 37. Ra6 {[%clk 0:00:24]}  Rb8 {[%clk 0:00:15]} 38. Rd1 {[%clk 0:00:24]}  Nc7 {[%clk 0:00:13]} 39. Ra3 {[%clk 0:00:24]}  Nd5 {[%clk 0:00:13]} 40. Rda1 {[%clk 0:00:24]}  Rbd8 {[%clk 0:00:12]} 41. Ra7 {[%clk 0:00:24]}  h6 {[%clk 0:00:12]} 42. Rxd7 {[%clk 0:00:25]}  Rxd7 {[%clk 0:00:12]} 43. Ra8 {[%clk 0:00:25]}  g5 {[%clk 0:00:12]} 44. hxg5+ {[%clk 0:00:23]}  hxg5 {[%clk 0:00:12]} 45. g4 {[%clk 0:00:24]}  Nf4+ {[%clk 0:00:08]} 46. Ke3 {[%clk 0:00:25]}  Ke6 {[%clk 0:00:07]} 47. gxf5+ {[%clk 0:00:21]}  Kxf5 {[%clk 0:00:07]} 48. Rf8+ {[%clk 0:00:21]}  Ke6 {[%clk 0:00:07]} 49. Rc8 {[%clk 0:00:20]}  Rd6 {[%clk 0:00:05]} 50. Rg8 {[%clk 0:00:16]}  Kf5 {[%clk 0:00:05]} 51. Rf8+ {[%clk 0:00:15]}  Ke6 {[%clk 0:00:05]} 52. Rg8 {[%clk 0:00:15]}  Kf5 {[%clk 0:00:05]} 53. Rf8+ {[%clk 0:00:15]}  Ke6 {[%clk 0:00:05]} 54. Rg8 {[%clk 0:00:15]} 1/2-1/2


[Site "https://www.chess.com"]

[Event "Titled Tuesday Blitz August 17 2021"]
[White "Dahanayake, Isara Banidu"]
[Black "Przybylski, Wojciech"]
[WhiteFideId "9932631"]
[BlackFideId "1117599"]
[WhiteElo "1394"]
[BlackElo "2250"]
[Result "0-1"]
[Round "11"]
[TimeControl "180+1"]
[Date "2021.08.17"]
[WhiteClock "0:00:14"]
[BlackClock "0:00:11"]

1. e4 {[%clk 0:03:00]}  c5 {[%clk 0:02:59]} 2. Nf3 {[%clk 0:03:00]}  d6 {[%clk 0:02:47]} 3. d4 {[%clk 0:03:00]}  cxd4 {[%clk 0:02:47]} 4. Qxd4 {[%clk 0:03:00]}  Nf6 {[%clk 0:02:47]} 5. h3 {[%clk 0:03:00]}  e5 {[%clk 0:02:41]} 6. Qe3 {[%clk 0:02:58]}  Be7 {[%clk 0:02:38]} 7. c4 {[%clk 0:02:58]}  O-O {[%clk 0:02:38]} 8. Be2 {[%clk 0:02:57]}  b5 {[%clk 0:02:36]} 9. O-O {[%clk 0:02:45]}  Bb7 {[%clk 0:02:35]} 10. Nc3 {[%clk 0:02:43]}  bxc4 {[%clk 0:02:35]} 11. Bxc4 {[%clk 0:02:43]}  Nxe4 {[%clk 0:02:32]} 12. Nxe4 {[%clk 0:02:33]}  d5 {[%clk 0:02:32]} 13. Nc5 {[%clk 0:02:14]}  Bxc5 {[%clk 0:02:30]} 14. Qxc5 {[%clk 0:02:14]}  dxc4 {[%clk 0:02:17]} 15. Bg5 {[%clk 0:02:14]}  Qd5 {[%clk 0:02:11]} 16. Qxd5 {[%clk 0:01:25]}  Bxd5 {[%clk 0:02:12]} 17. Nd2 {[%clk 0:01:07]}  f6 {[%clk 0:02:07]} 18. Be3 {[%clk 0:01:07]}  Nc6 {[%clk 0:02:07]} 19. Rac1 {[%clk 0:01:07]}  Na5 {[%clk 0:01:53]} 20. a3 {[%clk 0:00:58]}  Rfc8 {[%clk 0:01:51]} 21. Rc3 {[%clk 0:00:56]}  Rc6 {[%clk 0:01:48]} 22. Rfc1 {[%clk 0:00:55]}  a6 {[%clk 0:01:39]} 23. f3 {[%clk 0:00:33]}  Rb8 {[%clk 0:01:30]} 24. R3c2 {[%clk 0:00:32]}  Kf7 {[%clk 0:01:27]} 25. Kf2 {[%clk 0:00:32]}  Ke6 {[%clk 0:01:26]} 26. Nb1 {[%clk 0:00:32]}  Nb3 {[%clk 0:01:24]} 27. Rd1 {[%clk 0:00:30]}  Nc5 {[%clk 0:01:23]} 28. Nc3 {[%clk 0:00:29]}  Nd3+ {[%clk 0:01:23]} 29. Kg3 {[%clk 0:00:29]}  Rb3 {[%clk 0:01:14]} 30. Rdd2 {[%clk 0:00:22]}  f5 {[%clk 0:01:06]} 31. f4 {[%clk 0:00:20]}  g5 {[%clk 0:01:01]} 32. fxg5 {[%clk 0:00:20]}  f4+ {[%clk 0:01:01]} 33. Kg4 {[%clk 0:00:17]}  fxe3 {[%clk 0:01:00]} 34. Re2 {[%clk 0:00:18]}  Nf2+ {[%clk 0:00:38]} 35. Kg3 {[%clk 0:00:18]}  Rxc3 {[%clk 0:00:17]} 36. bxc3 {[%clk 0:00:16]}  Nd3 {[%clk 0:00:15]} 37. Rxe3 {[%clk 0:00:16]}  Rb6 {[%clk 0:00:14]} 38. Rce2 {[%clk 0:00:16]}  Rb3 {[%clk 0:00:14]} 39. h4 {[%clk 0:00:16]}  Rxc3 {[%clk 0:00:14]} 40. h5 {[%clk 0:00:17]}  Nf4 {[%clk 0:00:13]} 41. Kf2 {[%clk 0:00:03]}  Nxe2 {[%clk 0:00:13]} 42. Kxe2 {[%clk 0:00:03]}  Rxe3+ {[%clk 0:00:12]} 43. Kxe3 {[%clk 0:00:04]}  Kf5 {[%clk 0:00:12]} 44. g6 {[%clk 0:00:04]}  hxg6 {[%clk 0:00:12]} 45. h6 {[%clk 0:00:05]}  Kf6 {[%clk 0:00:12]} 46. h7 {[%clk 0:00:05]}  Kg7 {[%clk 0:00:12]} 47. h8=Q+ {[%clk 0:00:06]}  Kxh8 {[%clk 0:00:12]} 48. g4 {[%clk 0:00:06]}  Kg7 {[%clk 0:00:12]} 49. g5 {[%clk 0:00:07]}  Kh8 {[%clk 0:00:12]} 50. a4 {[%clk 0:00:08]}  Kg7 {[%clk 0:00:12]} 51. a5 {[%clk 0:00:09]}  Kh8 {[%clk 0:00:12]} 52. Kd2 {[%clk 0:00:10]}  Kg8 {[%clk 0:00:12]} 53. Kc3 {[%clk 0:00:11]}  Kf8 {[%clk 0:00:12]} 54. Kb4 {[%clk 0:00:12]}  e4 {[%clk 0:00:11]} 55. Kc3 {[%clk 0:00:12]}  e3 {[%clk 0:00:10]} 56. Kc2 {[%clk 0:00:13]}  Ke8 {[%clk 0:00:10]} 57. Kc3 {[%clk 0:00:12]}  Kd8 {[%clk 0:00:10]} 58. Kc2 {[%clk 0:00:11]}  Kc8 {[%clk 0:00:11]} 59. Kc3 {[%clk 0:00:11]}  Kb8 {[%clk 0:00:11]} 60. Kc2 {[%clk 0:00:12]}  Kb7 {[%clk 0:00:11]} 61. Kc3 {[%clk 0:00:13]}  Kc7 {[%clk 0:00:11]} 62. Kc2 {[%clk 0:00:13]}  Kc6 {[%clk 0:00:11]} 63. Kc3 {[%clk 0:00:12]}  Kc5 {[%clk 0:00:12]} 64. Kc2 {[%clk 0:00:12]}  Kb5 {[%clk 0:00:12]} 65. Kd1 {[%clk 0:00:13]}  Kxa5 {[%clk 0:00:12]} 66. Ke2 {[%clk 0:00:14]}  Kb5 {[%clk 0:00:11]} 67. Kxe3 {[%clk 0:00:15]}  Kc5 {[%clk 0:00:11]} 68. Kd2 {[%clk 0:00:15]}  Kd4 {[%clk 0:00:11]} 69. Kc2 {[%clk 0:00:15]}  Be4+ {[%clk 0:00:11]} 70. Kd2 {[%clk 0:00:16]}  Bd3 {[%clk 0:00:11]} 71. Kd1 {[%clk 0:00:16]}  c3 {[%clk 0:00:11]} 72. Kc1 {[%clk 0:00:16]}  Ke3 {[%clk 0:00:10]} 73. Kd1 {[%clk 0:00:16]}  a5 {[%clk 0:00:10]} 74. Kc1 {[%clk 0:00:17]}  a4 {[%clk 0:00:11]} 75. Kd1 {[%clk 0:00:14]}  a3 {[%clk 0:00:11]} 76. Ke1 {[%clk 0:00:14]}  a2 {[%clk 0:00:11]} 0-1


[Site "https://www.chess.com"]

[Event "Titled Tuesday Blitz August 17 2021"]
[White "Damjanovic, Vladimir"]
[Black "Kovalev, Vladislav"]
[WhiteFideId "903795"]
[BlackFideId "13504398"]
[WhiteElo "2374"]
[BlackElo "2573"]
[Result "0-1"]
[Round "11"]
[TimeControl "180+1"]
[Date "2021.08.17"]
[WhiteClock "0:00:04"]
[BlackClock "0:00:12"]

1. d4 {[%clk 0:03:00]}  Nf6 {[%clk 0:03:00]} 2. Nf3 {[%clk 0:02:58]}  g6 {[%clk 0:03:00]} 3. g3 {[%clk 0:02:58]}  Bg7 {[%clk 0:03:01]} 4. Bg2 {[%clk 0:02:59]}  O-O {[%clk 0:03:01]} 5. O-O {[%clk 0:02:59]}  d6 {[%clk 0:03:02]} 6. Re1 {[%clk 0:03:00]}  Nc6 {[%clk 0:03:00]} 7. d5 {[%clk 0:02:59]}  Nb8 {[%clk 0:03:01]} 8. e4 {[%clk 0:02:58]}  c6 {[%clk 0:03:00]} 9. Nc3 {[%clk 0:02:56]}  Nbd7 {[%clk 0:02:23]} 10. Nd4 {[%clk 0:02:49]}  c5 {[%clk 0:02:21]} 11. Nb3 {[%clk 0:02:49]}  Ne5 {[%clk 0:02:16]} 12. h3 {[%clk 0:02:47]}  e6 {[%clk 0:01:53]} 13. Nd2 {[%clk 0:02:14]}  exd5 {[%clk 0:01:45]} 14. exd5 {[%clk 0:02:15]}  Nh5 {[%clk 0:01:28]} 15. Kh2 {[%clk 0:02:01]}  f5 {[%clk 0:01:20]} 16. f4 {[%clk 0:02:00]}  Nf7 {[%clk 0:01:21]} 17. Nc4 {[%clk 0:01:37]}  b6 {[%clk 0:01:21]} 18. a4 {[%clk 0:01:33]}  Ba6 {[%clk 0:01:17]} 19. Nb5 {[%clk 0:01:32]}  Qd7 {[%clk 0:01:18]} 20. Bf1 {[%clk 0:01:25]}  Nf6 {[%clk 0:01:15]} 21. c3 {[%clk 0:00:30]}  Rae8 {[%clk 0:01:14]} 22. Be3 {[%clk 0:00:31]}  h5 {[%clk 0:01:12]} 23. h4 {[%clk 0:00:20]}  Ng4+ {[%clk 0:01:12]} 24. Kg1 {[%clk 0:00:21]}  Nxe3 {[%clk 0:01:05]} 25. Nxe3 {[%clk 0:00:21]}  Bb7 {[%clk 0:01:05]} 26. Na3 {[%clk 0:00:18]}  a6 {[%clk 0:01:02]} 27. Nac4 {[%clk 0:00:15]}  b5 {[%clk 0:00:58]} 28. axb5 {[%clk 0:00:16]}  axb5 {[%clk 0:00:58]} 29. Na5 {[%clk 0:00:16]}  Ba8 {[%clk 0:00:58]} 30. Bg2 {[%clk 0:00:15]}  b4 {[%clk 0:00:46]} 31. Qd2 {[%clk 0:00:09]}  bxc3 {[%clk 0:00:45]} 32. bxc3 {[%clk 0:00:10]}  Nd8 {[%clk 0:00:42]} 33. Nac4 {[%clk 0:00:02]}  Bb7 {[%clk 0:00:40]} 34. Rab1 {[%clk 0:00:02]}  Re7 {[%clk 0:00:38]} 35. Bf3 {[%clk 0:00:02]}  Rfe8 {[%clk 0:00:38]} 36. Kf2 {[%clk 0:00:03]}  Qc7 {[%clk 0:00:36]} 37. Ra1 {[%clk 0:00:02]}  Nf7 {[%clk 0:00:37]} 38. Re2 {[%clk 0:00:02]}  Nh6 {[%clk 0:00:38]} 39. Na5 {[%clk 0:00:02]}  Ba6 {[%clk 0:00:35]} 40. Nec4 {[%clk 0:00:01]}  Rxe2+ {[%clk 0:00:35]} 41. Bxe2 {[%clk 0:00:02]}  Ng4+ {[%clk 0:00:34]} 42. Bxg4 {[%clk 0:00:03]}  hxg4 {[%clk 0:00:35]} 43. Re1 {[%clk 0:00:03]}  Rxe1 {[%clk 0:00:09]} 44. Qxe1 {[%clk 0:00:04]}  Kh7 {[%clk 0:00:10]} 45. h5 {[%clk 0:00:03]}  gxh5 {[%clk 0:00:10]} 46. Qe6 {[%clk 0:00:04]}  Bc8 {[%clk 0:00:10]} 47. Qxd6 {[%clk 0:00:03]}  Qxd6 {[%clk 0:00:09]} 48. Nxd6 {[%clk 0:00:04]}  Bxc3 {[%clk 0:00:06]} 49. Nac4 {[%clk 0:00:02]}  Bd4+ {[%clk 0:00:04]} 50. Ke2 {[%clk 0:00:02]}  Ba6 {[%clk 0:00:05]} 51. Kd2 {[%clk 0:00:01]}  h4 {[%clk 0:00:04]} 52. gxh4 {[%clk 0:00:02]}  g3 {[%clk 0:00:05]} 53. Ne5 {[%clk 0:00:02]}  g2 {[%clk 0:00:05]} 54. Nf3 {[%clk 0:00:03]}  g1=Q {[%clk 0:00:04]} 55. Nxg1 {[%clk 0:00:03]}  Bxg1 {[%clk 0:00:05]} 56. Nxf5 {[%clk 0:00:04]}  Kg6 {[%clk 0:00:06]} 57. Ng3 {[%clk 0:00:02]}  Bd4 {[%clk 0:00:06]} 58. h5+ {[%clk 0:00:02]}  Kf6 {[%clk 0:00:06]} 59. h6 {[%clk 0:00:02]}  Kg6 {[%clk 0:00:06]} 60. d6 {[%clk 0:00:03]}  Bb5 {[%clk 0:00:06]} 61. f5+ {[%clk 0:00:01]}  Kxh6 {[%clk 0:00:06]} 62. Ne4 {[%clk 0:00:02]}  Bc6 {[%clk 0:00:06]} 63. Nc3 {[%clk 0:00:01]}  Kg5 {[%clk 0:00:05]} 64. Ne2 {[%clk 0:00:02]}  Be5 {[%clk 0:00:05]} 65. Kd3 {[%clk 0:00:01]}  Bb5+ {[%clk 0:00:05]} 66. Ke3 {[%clk 0:00:01]}  Bxd6 {[%clk 0:00:05]} 67. Nc1 {[%clk 0:00:01]}  Bc6 {[%clk 0:00:06]} 68. Kd3 {[%clk 0:00:01]}  Kxf5 {[%clk 0:00:06]} 69. Kc3 {[%clk 0:00:02]}  Ke6 {[%clk 0:00:07]} 70. Nb3 {[%clk 0:00:02]}  Bd5 {[%clk 0:00:08]} 71. Nd2 {[%clk 0:00:03]}  Be5+ {[%clk 0:00:09]} 72. Kd3 {[%clk 0:00:03]}  Kd6 {[%clk 0:00:09]} 73. Nb1 {[%clk 0:00:03]}  c4+ {[%clk 0:00:09]} 74. Kc2 {[%clk 0:00:03]}  Kc5 {[%clk 0:00:10]} 75. Nd2 {[%clk 0:00:04]}  c3 {[%clk 0:00:09]} 76. Nf1 {[%clk 0:00:03]}  Kd4 {[%clk 0:00:10]} 77. Kc1 {[%clk 0:00:02]}  Bf4+ {[%clk 0:00:10]} 78. Kd1 {[%clk 0:00:02]}  Be4 {[%clk 0:00:10]} 79. Ne3 {[%clk 0:00:01]}  Bxe3 {[%clk 0:00:10]} 80. Ke1 {[%clk 0:00:02]}  c2 {[%clk 0:00:10]} 81. Ke2 {[%clk 0:00:03]}  Bd3+ {[%clk 0:00:11]} 82. Kf3 {[%clk 0:00:03]}  c1=Q {[%clk 0:00:11]} 83. Kg4 {[%clk 0:00:03]}  Qg1+ {[%clk 0:00:12]} 84. Kh5 {[%clk 0:00:04]}  Qg5# {[%clk 0:00:12]} 0-1


[Site "https://www.chess.com"]

[Event "Titled Tuesday Blitz August 17 2021"]
[White "Dang, Hoang Son"]
[Black "Perez Gormaz, Matias"]
[WhiteFideId "12402435"]
[BlackFideId "3406342"]
[WhiteElo "2248"]
[BlackElo "2352"]
[Result "1-0"]
[Round "11"]
[TimeControl "180+1"]
[Date "2021.08.17"]
[WhiteClock "0:01:09"]
[BlackClock "0:00:02"]

1. e4 {[%clk 0:03:00]}  c5 {[%clk 0:03:00]} 2. Nf3 {[%clk 0:03:01]}  d6 {[%clk 0:03:00]} 3. d4 {[%clk 0:03:00]}  cxd4 {[%clk 0:03:01]} 4. Qxd4 {[%clk 0:03:00]}  Nc6 {[%clk 0:03:00]} 5. Bb5 {[%clk 0:03:01]}  Bd7 {[%clk 0:03:01]} 6. Qe3 {[%clk 0:03:00]}  Nf6 {[%clk 0:02:59]} 7. O-O {[%clk 0:02:59]}  g6 {[%clk 0:03:00]} 8. Nc3 {[%clk 0:02:57]}  Bg7 {[%clk 0:03:00]} 9. Rd1 {[%clk 0:02:58]}  O-O {[%clk 0:02:58]} 10. h3 {[%clk 0:02:57]}  Qc7 {[%clk 0:02:30]} 11. Bxc6 {[%clk 0:02:43]}  Bxc6 {[%clk 0:02:28]} 12. Nd4 {[%clk 0:02:39]}  Rac8 {[%clk 0:02:19]} 13. Qe2 {[%clk 0:02:25]}  Bd7 {[%clk 0:02:16]} 14. Bg5 {[%clk 0:02:22]}  Qc5 {[%clk 0:01:48]} 15. Be3 {[%clk 0:02:12]}  Qb4 {[%clk 0:01:40]} 16. Nb3 {[%clk 0:02:09]}  Nxe4 {[%clk 0:01:35]} 17. Nd5 {[%clk 0:02:08]}  Qa4 {[%clk 0:01:27]} 18. Nxe7+ {[%clk 0:02:03]}  Kh8 {[%clk 0:01:28]} 19. Nxc8 {[%clk 0:02:04]}  Rxc8 {[%clk 0:01:29]} 20. c3 {[%clk 0:02:03]}  Re8 {[%clk 0:01:06]} 21. Bd4 {[%clk 0:01:57]}  Nxc3 {[%clk 0:01:00]} 22. Bxg7+ {[%clk 0:01:41]}  Kxg7 {[%clk 0:01:00]} 23. Qd2 {[%clk 0:01:33]}  Nxd1 {[%clk 0:00:59]} 24. Rxd1 {[%clk 0:01:32]}  Qxa2 {[%clk 0:00:54]} 25. Qc3+ {[%clk 0:01:31]}  Kg8 {[%clk 0:00:28]} 26. Ra1 {[%clk 0:01:32]}  Qxa1+ {[%clk 0:00:25]} 27. Nxa1 {[%clk 0:01:33]}  Bc6 {[%clk 0:00:23]} 28. Nb3 {[%clk 0:01:32]}  Re5 {[%clk 0:00:17]} 29. Nd4 {[%clk 0:01:31]}  Bd5 {[%clk 0:00:15]} 30. Kh2 {[%clk 0:01:28]}  h5 {[%clk 0:00:15]} 31. f4 {[%clk 0:01:24]}  Re4 {[%clk 0:00:13]} 32. f5 {[%clk 0:01:22]}  Re5 {[%clk 0:00:10]} 33. f6 {[%clk 0:01:13]}  Kh7 {[%clk 0:00:09]} 34. Qc7 {[%clk 0:01:10]}  Rg5 {[%clk 0:00:05]} 35. g3 {[%clk 0:01:11]}  Re5 {[%clk 0:00:03]} 36. Qxd6 {[%clk 0:01:10]}  Rg5 {[%clk 0:00:02]} 37. Qf8 {[%clk 0:01:09]} 1-0


[Site "https://www.chess.com"]

[Event "Titled Tuesday Blitz August 17 2021"]
[White "Devaev, Alexander"]
[Black "Oliveira, Silvio Eduardo"]
[WhiteFideId "4169395"]
[BlackFideId "2111560"]
[WhiteElo "2185"]
[BlackElo "2302"]
[Result "1-0"]
[Round "11"]
[TimeControl "180+1"]
[Date "2021.08.17"]
[WhiteClock "0:00:21"]
[BlackClock "0:00:19"]

1. d4 {[%clk 0:03:00]}  Nf6 {[%clk 0:02:59]} 2. c4 {[%clk 0:03:00]}  e6 {[%clk 0:02:59]} 3. Nf3 {[%clk 0:03:00]}  d5 {[%clk 0:03:00]} 4. cxd5 {[%clk 0:02:59]}  exd5 {[%clk 0:03:00]} 5. Nc3 {[%clk 0:03:00]}  c6 {[%clk 0:03:00]} 6. Bg5 {[%clk 0:03:00]}  h6 {[%clk 0:03:00]} 7. Bh4 {[%clk 0:03:01]}  Be7 {[%clk 0:03:00]} 8. Bxf6 {[%clk 0:03:01]}  Bxf6 {[%clk 0:03:00]} 9. e3 {[%clk 0:03:01]}  O-O {[%clk 0:03:00]} 10. Bd3 {[%clk 0:03:01]}  Re8 {[%clk 0:02:56]} 11. h3 {[%clk 0:03:00]}  c5 {[%clk 0:02:54]} 12. O-O {[%clk 0:02:53]}  cxd4 {[%clk 0:02:52]} 13. exd4 {[%clk 0:02:49]}  Nc6 {[%clk 0:02:53]} 14. Bb5 {[%clk 0:02:44]}  Be6 {[%clk 0:02:47]} 15. Rc1 {[%clk 0:02:36]}  Qb6 {[%clk 0:02:43]} 16. Bxc6 {[%clk 0:02:30]}  bxc6 {[%clk 0:02:34]} 17. Na4 {[%clk 0:02:29]}  Qc7 {[%clk 0:02:22]} 18. Nc5 {[%clk 0:02:22]}  Bf5 {[%clk 0:02:20]} 19. Qa4 {[%clk 0:02:19]}  Rac8 {[%clk 0:02:06]} 20. Rc3 {[%clk 0:02:13]}  Re2 {[%clk 0:01:52]} 21. b4 {[%clk 0:02:09]}  Rce8 {[%clk 0:01:41]} 22. Na6 {[%clk 0:01:35]}  Qf4 {[%clk 0:01:40]} 23. Qxc6 {[%clk 0:01:27]}  Rc8 {[%clk 0:01:27]} 24. Nc7 {[%clk 0:01:13]}  Bxd4 {[%clk 0:01:11]} 25. Nxd4 {[%clk 0:00:40]}  Qxd4 {[%clk 0:01:12]} 26. Qc5 {[%clk 0:00:33]}  Qxc5 {[%clk 0:01:08]} 27. Rxc5 {[%clk 0:00:33]}  Rxa2 {[%clk 0:00:54]} 28. Nxd5 {[%clk 0:00:34]}  Rxc5 {[%clk 0:00:45]} 29. bxc5 {[%clk 0:00:34]}  Be6 {[%clk 0:00:41]} 30. Nf4 {[%clk 0:00:34]}  Rc2 {[%clk 0:00:33]} 31. Ra1 {[%clk 0:00:31]}  Rxc5 {[%clk 0:00:24]} 32. Rxa7 {[%clk 0:00:32]}  Rc1+ {[%clk 0:00:24]} 33. Kh2 {[%clk 0:00:32]}  Rc6 {[%clk 0:00:22]} 34. h4 {[%clk 0:00:23]}  g6 {[%clk 0:00:20]} 35. Kg3 {[%clk 0:00:22]}  h5 {[%clk 0:00:20]} 36. Ra5 {[%clk 0:00:21]}  Kg7 {[%clk 0:00:21]} 37. Ne2 {[%clk 0:00:18]}  Bf5 {[%clk 0:00:18]} 38. Nd4 {[%clk 0:00:18]}  Rc3+ {[%clk 0:00:18]} 39. f3 {[%clk 0:00:18]}  Bd7 {[%clk 0:00:16]} 40. Rd5 {[%clk 0:00:18]}  Be8 {[%clk 0:00:16]} 41. Rd8 {[%clk 0:00:18]}  Ba4 {[%clk 0:00:15]} 42. Ra8 {[%clk 0:00:19]}  Bc2 {[%clk 0:00:14]} 43. Ra7 {[%clk 0:00:19]}  Bb3 {[%clk 0:00:14]} 44. Ra3 {[%clk 0:00:17]}  Rd3 {[%clk 0:00:14]} 45. Nxb3 {[%clk 0:00:17]}  Kf6 {[%clk 0:00:14]} 46. Kf2 {[%clk 0:00:17]}  Kg7 {[%clk 0:00:15]} 47. Ke2 {[%clk 0:00:17]}  Rc3 {[%clk 0:00:15]} 48. Kd2 {[%clk 0:00:18]}  Rc8 {[%clk 0:00:15]} 49. Nd4 {[%clk 0:00:18]}  Rd8 {[%clk 0:00:16]} 50. Rd3 {[%clk 0:00:18]}  Rd7 {[%clk 0:00:16]} 51. Ke3 {[%clk 0:00:18]}  Re7+ {[%clk 0:00:16]} 52. Kf2 {[%clk 0:00:18]}  Ra7 {[%clk 0:00:17]} 53. Ne2 {[%clk 0:00:19]}  Ra2 {[%clk 0:00:17]} 54. Re3 {[%clk 0:00:20]}  Ra1 {[%clk 0:00:17]} 55. Kg3 {[%clk 0:00:20]}  Kf6 {[%clk 0:00:18]} 56. Nf4 {[%clk 0:00:20]}  Ra3 {[%clk 0:00:18]} 57. Nh3 {[%clk 0:00:21]}  Kg7 {[%clk 0:00:19]} 58. Rxa3 {[%clk 0:00:21]} 1-0


[Site "https://www.chess.com"]

[Event "Titled Tuesday Blitz August 17 2021"]
[White "Diakonova, Ekaterina"]
[Black "Petrovskyi, Vadym"]
[WhiteFideId "24172936"]
[BlackFideId "14165210"]
[WhiteElo "2102"]
[BlackElo "2334"]
[Result "0-1"]
[Round "11"]
[TimeControl "180+1"]
[Date "2021.08.17"]
[WhiteClock "0:02:00"]
[BlackClock "0:02:31"]

1. Nf3 {[%clk 0:03:00]}  Nf6 {[%clk 0:02:58]} 2. g3 {[%clk 0:03:01]}  g6 {[%clk 0:02:58]} 3. b3 {[%clk 0:03:01]}  Bg7 {[%clk 0:02:59]} 4. Bb2 {[%clk 0:03:02]}  O-O {[%clk 0:03:00]} 5. Bg2 {[%clk 0:03:02]}  d6 {[%clk 0:03:00]} 6. O-O {[%clk 0:03:03]}  e5 {[%clk 0:03:00]} 7. d3 {[%clk 0:03:02]}  Nc6 {[%clk 0:03:00]} 8. c4 {[%clk 0:03:03]}  a5 {[%clk 0:03:00]} 9. Nc3 {[%clk 0:03:02]}  Be6 {[%clk 0:03:00]} 10. Nd2 {[%clk 0:03:01]}  Re8 {[%clk 0:03:00]} 11. Nd5 {[%clk 0:03:01]}  Bxd5 {[%clk 0:02:57]} 12. cxd5 {[%clk 0:03:00]}  Nb4 {[%clk 0:02:58]} 13. f4 {[%clk 0:02:47]}  Nbxd5 {[%clk 0:02:57]} 14. Qc1 {[%clk 0:02:29]}  exf4 {[%clk 0:02:54]} 15. gxf4 {[%clk 0:02:29]}  Rxe2 {[%clk 0:02:54]} 16. Ne4 {[%clk 0:02:20]}  Rxb2 {[%clk 0:02:41]} 17. Qxb2 {[%clk 0:02:19]}  Nxe4 {[%clk 0:02:41]} 18. Qc2 {[%clk 0:02:17]}  Ne3 {[%clk 0:02:41]} 19. Qe2 {[%clk 0:02:16]}  Nxf1 {[%clk 0:02:35]} 20. Rxf1 {[%clk 0:02:15]}  Bd4+ {[%clk 0:02:34]} 21. Kh1 {[%clk 0:02:15]}  Nf2+ {[%clk 0:02:34]} 22. Rxf2 {[%clk 0:02:15]}  Bxf2 {[%clk 0:02:35]} 23. Qxf2 {[%clk 0:02:16]}  Qf6 {[%clk 0:02:34]} 24. Bxb7 {[%clk 0:02:15]}  Re8 {[%clk 0:02:34]} 25. Be4 {[%clk 0:02:15]}  Qa1+ {[%clk 0:02:33]} 26. Kg2 {[%clk 0:02:15]}  Qd1 {[%clk 0:02:33]} 27. Qa7 {[%clk 0:02:09]}  Qg4+ {[%clk 0:02:31]} 28. Kh1 {[%clk 0:02:00]}  d5 {[%clk 0:02:31]} 0-1


[Site "https://www.chess.com"]

[Event "Titled Tuesday Blitz August 17 2021"]
[White "Djordjevic, Vuk"]
[Black "Martin Carmona, Gaston Manuel"]
[WhiteFideId "902098"]
[BlackFideId "22284567"]
[WhiteElo "2463"]
[BlackElo "2161"]
[Result "1-0"]
[Round "11"]
[TimeControl "180+1"]
[Date "2021.08.17"]
[WhiteClock "0:00:44"]
[BlackClock "0:00:36"]

1. d4 {[%clk 0:02:59]}  Nf6 {[%clk 0:02:46]} 2. Bg5 {[%clk 0:02:59]}  e6 {[%clk 0:02:43]} 3. e4 {[%clk 0:02:59]}  h6 {[%clk 0:02:44]} 4. Bxf6 {[%clk 0:02:59]}  Qxf6 {[%clk 0:02:45]} 5. c3 {[%clk 0:03:00]}  d6 {[%clk 0:02:43]} 6. Bd3 {[%clk 0:03:00]}  g5 {[%clk 0:02:44]} 7. Ne2 {[%clk 0:02:57]}  Nc6 {[%clk 0:02:19]} 8. O-O {[%clk 0:02:57]}  e5 {[%clk 0:02:19]} 9. Na3 {[%clk 0:02:51]}  Bg7 {[%clk 0:02:18]} 10. Nc2 {[%clk 0:02:48]}  Bd7 {[%clk 0:02:17]} 11. d5 {[%clk 0:02:40]}  Ne7 {[%clk 0:02:17]} 12. Ng3 {[%clk 0:02:40]}  Qg6 {[%clk 0:02:14]} 13. Ne3 {[%clk 0:02:09]}  h5 {[%clk 0:02:11]} 14. Qb3 {[%clk 0:02:09]}  O-O-O {[%clk 0:02:09]} 15. Bb5 {[%clk 0:02:04]}  g4 {[%clk 0:02:00]} 16. Bxd7+ {[%clk 0:02:02]}  Rxd7 {[%clk 0:02:01]} 17. Ngf5 {[%clk 0:02:02]}  Bh6 {[%clk 0:02:01]} 18. Nxe7+ {[%clk 0:02:02]}  Rxe7 {[%clk 0:02:01]} 19. Nf5 {[%clk 0:02:02]}  Rd7 {[%clk 0:01:57]} 20. c4 {[%clk 0:02:02]}  Bd2 {[%clk 0:01:52]} 21. Qa3 {[%clk 0:01:54]}  Kb8 {[%clk 0:01:50]} 22. Rad1 {[%clk 0:01:51]}  Bf4 {[%clk 0:01:50]} 23. Rd3 {[%clk 0:01:50]}  h4 {[%clk 0:01:49]} 24. Qa4 {[%clk 0:01:38]}  Rdd8 {[%clk 0:01:45]} 25. Rb3 {[%clk 0:01:36]}  Rh5 {[%clk 0:01:37]} 26. Qa6 {[%clk 0:01:32]}  b6 {[%clk 0:01:35]} 27. Ra3 {[%clk 0:01:32]}  Rxf5 {[%clk 0:01:34]} 28. Qxa7+ {[%clk 0:01:25]}  Kc8 {[%clk 0:01:33]} 29. Qa4 {[%clk 0:01:25]}  Bxh2+ {[%clk 0:01:11]} 30. Kxh2 {[%clk 0:01:10]}  g3+ {[%clk 0:01:10]} 31. Kh3 {[%clk 0:01:09]}  Rf4 {[%clk 0:01:05]} 32. f3 {[%clk 0:01:09]}  Qxe4 {[%clk 0:00:35]} 33. fxe4 {[%clk 0:01:00]}  Rxf1 {[%clk 0:00:36]} 34. Qc6 {[%clk 0:00:44]} 1-0


[Site "https://www.chess.com"]